[Event "ESTCC-50 2025"]
[Site "Swidnica"]
[Date "2025.04.11"]
[Round "7.1"]
[White "Lalic, Susan K"]
[Black "Laszewicz, Pawel"]
[Result "1-0"]
[Annotator "ChessBase"]
[ECO "B29"]
[WhiteElo "2227"]
[BlackElo "2011"]
[PlyCount "72"]
[EventDate "2025.04.05"]
[EventType "team-tourn"]
[EventCountry "POL"]
[SourceTitle "playchess.com"]
[Source "ChessBase"]
[SourceQuality "1"]
[WhiteTeam "England"]
[BlackTeam "Poland"]
[WhiteTeamCountry "ENG"]
[BlackTeamCountry "POL"]
[TimeControl "40/5400+30:1800+30"]

1. e4 {[%emt 0:00:14]} c5 {[%emt 0:00:08]} 2. Nf3 {[%emt 0:00:22]} Nf6 {[%emt 0:00:15]} 3. Nc3 {[%emt 0:05:55]} d6 {[%emt 0:01:07]} 4. h3 {[%emt 0:03:26]} a6 {[%emt 0:08:40]} 5. a4 {[%emt 0:00:30]} e5 {[%emt 0:01:43]} 6. Bc4 {[%emt 0:04:09]} Be7 {[%emt 0:01:13]} 7. d3 {[%emt 0:02:25]} Nc6 {[%emt 0:05:57]} 8. Nd5 {[%emt 0:03:17]} Nxd5 {[%emt 0:03:18]} 9. Bxd5 {[%emt 0:00:34]} O-O {[%emt 0:13:30]} 10. O-O {[%emt 0:02:02]} Kh8 {[%emt 0:00:23]} 11. Nh2 {[%emt 0:19:58]} Nb4 {[%emt 0:06:04]} 12. Bb3 {[%emt 0:09:10]} f5 {[%emt 0:05:22]} 13. f4 {[%emt 0:05:49]} exf4 {[%emt 0:21:28]} 14. Bxf4 {[%emt 0:01:02]} d5 {[%emt 0:01:55]} 15. exd5 {[%emt 0:05:31]} Nxd5 {[%emt 0:02:19]} 16. Bd2 {[%emt 0:00:02]} Bf6 {[%emt 0:05:49]} 17. Qf3 {[%emt 0:01:43]} Be6 {[%emt 0:05:54]} 18. Bc3 {[%emt 0:07:45]} Qd6 {[%emt 0:06:28]} 19. Bxf6 {[%emt 0:05:36]} Rxf6 {[%emt 0:00:25]} 20. Rae1 {[%emt 0:00:25]} Bg8 {[%emt 0:00:58]} 21. Re2 {[%emt 0:06:58]} Rd8 {[%emt 0:01:41]} 22. Rfe1 {[%emt 0:04:24]} b5 {[%emt 0:04:16]} 23. axb5 {[%emt 0:05:04]} axb5 {[%emt 0:00:12]} 24. Re8 {[%emt 0:00:30]} Rxe8 {[%emt 0:00:18]} 25. Rxe8 {[%emt 0:00:19]} c4 {[%emt 0:00:04]} 26. dxc4 {[%emt 0:02:34]} bxc4 {[%emt 0:00:02]} 27. Ba2 {[%emt 0:00:23]} Rf8 {[%emt 0:01:48]} 28. Rxf8 {[%emt 0:00:28]} Qxf8 {[%emt 0:00:02]} 29. Qe2 {[%emt 0:02:04]} Nb4 {[%emt 0:00:53]} 30. Bb1 {[%emt 0:00:22]} c3 {[%emt 0:00:10]} 31. bxc3 {[%emt 0:00:21]} Qc5+ {[%emt 0:00:27]} 32. Qf2 {[%emt 0:00:25]} Qxc3 {[%emt 0:00:16]} 33. Qxf5 {[%emt 0:00:59]} Nd5 {[%emt 0:01:16]} 34. Nf1 {[%emt 0:01:32]} Qc5+ {[%emt 0:01:56]} 35. Kh1 {[%emt 0:00:33]} Qb5 {[%emt 0:00:56]} 36. Ba2 {[%emt 0:00:31]} Qc6 {[%emt 0:01:17]} 1-0

[Event "ESTCC-50 2025"]
[Site "Swidnica"]
[Date "2025.04.11"]
[Round "7.2"]
[White "Machlowski, Slawomir"]
[Black "Lauterbach, Ingrid"]
[Result "1-0"]
[Annotator "NA"]
[ECO "A06"]
[WhiteElo "1963"]
[BlackElo "1998"]
[PlyCount "97"]
[EventDate "2025.04.05"]
[EventType "team-tourn"]
[EventCountry "POL"]
[SourceTitle "playchess.com"]
[Source "ChessBase"]
[SourceQuality "1"]
[WhiteTeam "Czech Republic"]
[BlackTeam "England"]
[WhiteTeamCountry "CZE"]
[BlackTeamCountry "ENG"]
[TimeControl "40/5400+30:1800+30"]

1. Nf3 {[%emt 0:00:04]} d5 {[%emt 0:01:13]} 2. g3 {[%emt 0:00:17]} g6 {[%emt 0:00:25]} 3. Bg2 {[%emt 0:00:43]} Bg7 {[%emt 0:00:25]} 4. d4 {[%emt 0:00:23]} Nf6 {[%emt 0:02:11]} 5. O-O {[%emt 0:00:19]} O-O {[%emt 0:00:37]} 6. b3 {[%emt 0:01:09]} Ne4 {[%emt 0:04:34]} 7. Bb2 {[%emt 0:02:10]} c5 {[%emt 0:06:17]} 8. c3 {[%emt 0:06:22]} Nc6 {[%emt 0:01:56]} 9. e3 {[%emt 0:01:17]} cxd4 {[%emt 0:05:21]} 10. cxd4 {[%emt 0:00:56]} Bg4 {[%emt 0:06:23]} 11. h3 {[%emt 0:03:18]} Bf5 {[%emt 0:04:29]} 12. g4 {[%emt 0:09:56]} Bd7 {[%emt 0:03:20]} 13. Nfd2 {[%emt 0:01:28]} f5 {[%emt 0:11:28]} 14. f3 {[%emt 0:02:07]} Ng3 {[%emt 0:09:43]} 15. Re1 {[%emt 0:03:21]} Qc7 {[%emt 0:05:50]} 16. f4 {[%emt 0:06:51]} Ne4 {[%emt 0:12:50]} 17. Nxe4 {[%emt 0:03:28]} fxe4 {[%emt 0:00:19]} 18. Nc3 {[%emt 0:00:36]} Nb4 {[%emt 0:08:03]} 19. Bf1 {[%emt 0:01:36]} Qd6 {[%emt 0:02:02]} 20. a3 {[%emt 0:02:37]} Nc6 {[%emt 0:00:07]} 21. Nxd5 {[%emt 0:01:33]} e6 {[%emt 0:01:55]} 22. Nc3 {[%emt 0:03:39]} Rxf4 {[%emt 0:05:00]} 23. exf4 {[%emt 0:05:32]} Bxd4+ {[%emt 0:00:28]} 24. Kh1 {[%emt 0:00:59]} Qe7 {[%emt 0:05:46]} 25. Rxe4 {[%emt 0:04:39]} Qg7 {[%emt 0:00:15]} 26. Rc1 {[%emt 0:02:35]} e5 {[%emt 0:01:34]} 27. Na4 {[%emt 0:06:53]} Bxb2 {[%emt 0:00:24]} 28. Nxb2 {[%emt 0:01:07]} exf4 {[%emt 0:00:38]} 29. Nc4 {[%emt 0:02:06]} Rf8 {[%emt 0:00:11]} 30. Qd5+ {[%emt 0:02:49]} Kh8 {[%emt 0:00:14]} 31. Ne5 {[%emt 0:02:24]} Nxe5 {[%emt 0:00:24]} 32. Qxe5 {[%emt 0:00:29]} Bc6 {[%emt 0:00:07]} 33. Qxg7+ {[%emt 0:00:59]} Kxg7 {[%emt 0:00:06]} 34. Rxc6 {[%emt 0:00:14]} bxc6 {[%emt 0:00:04]} 35. Re7+ {[%emt 0:01:12]} Kf6 {[%emt 0:00:26]} 36. Rxa7 {[%emt 0:01:01]} h5 {[%emt 0:01:57]} 37. gxh5 {[%emt 0:00:28]} g5 {[%emt 0:00:10]} 38. h6 {[%emt 0:01:12]} f3 {[%emt 0:00:26]} 39. Kg1 {[%emt 0:00:23]} Ke5 {[%emt 0:01:08]} 40. Kf2 {[%emt 0:00:00]} Kd4 {[%emt 0:00:00]} 41. h7 {[%emt 0:01:40]} Ke4 {[%emt 0:01:14]} 42. Bc4 {[%emt 0:00:35]} Rd8 {[%emt 0:00:19]} 43. Re7+ {[%emt 0:01:03]} Kf4 {[%emt 0:00:17]} 44. Rf7+ {[%emt 0:00:26]} Ke4 {[%emt 0:00:22]} 45. Rxf3 {[%emt 0:01:02]} g4 {[%emt 0:00:09]} 46. hxg4 {[%emt 0:00:46]} c5 {[%emt 0:00:06]} 47. Bg8 {[%emt 0:01:17]} c4 {[%emt 0:00:18]} 48. h8=Q {[%emt 0:01:01]} c3 {[%emt 0:00:26]} 49. Re3+ {[%emt 0:00:30]} 1-0

[Event "ESTCC-50 2025"]
[Site "Swidnica"]
[Date "2025.04.11"]
[Round "7.3"]
[White "Regan, Natasha K"]
[Black "Kruczynski, Marek"]
[Result "1-0"]
[Annotator "NA"]
[ECO "A04"]
[WhiteElo "2056"]
[BlackElo "1862"]
[PlyCount "63"]
[EventDate "2025.04.05"]
[EventType "team-tourn"]
[EventCountry "POL"]
[SourceTitle "playchess.com"]
[Source "ChessBase"]
[SourceQuality "1"]
[WhiteTeam "England"]
[BlackTeam "Poland"]
[WhiteTeamCountry "ENG"]
[BlackTeamCountry "POL"]
[TimeControl "40/5400+30:1800+30"]

1. Nf3 {[%emt 0:00:03]} g6 {[%emt 0:00:38]} 2. e4 {[%emt 0:00:36]} Bg7 {[%emt 0:00:15]} 3. d4 {[%emt 0:00:22]} c6 {[%emt 0:01:24]} 4. Nc3 {[%emt 0:02:18]} b5 {[%emt 0:02:04]} 5. Bd3 {[%emt 0:02:04]} Bb7 {[%emt 0:01:33]} 6. a4 {[%emt 0:01:58]} b4 {[%emt 0:02:58]} 7. Ne2 {[%emt 0:00:56]} a5 {[%emt 0:02:28]} 8. c3 {[%emt 0:04:04]} Na6 {[%emt 0:08:46]} 9. Bf4 {[%emt 0:03:17]} Nf6 {[%emt 0:12:16]} 10. Qd2 {[%emt 0:01:35]} c5 {[%emt 0:08:53]} 11. e5 {[%emt 0:04:03]} Nh5 {[%emt 0:07:29]} 12. Bh6 {[%emt 0:06:31]} O-O {[%emt 0:01:37]} 13. Bxg7 {[%emt 0:06:36]} Kxg7 {[%emt 0:03:21]} 14. Ng3 {[%emt 0:11:19]} Bxf3 {[%emt 0:06:29]} 15. gxf3 {[%emt 0:00:43]} Nxg3 {[%emt 0:00:33]} 16. hxg3 {[%emt 0:00:14]} Rh8 {[%emt 0:00:34]} 17. Qh6+ {[%emt 0:08:23]} Kg8 {[%emt 0:00:46]} 18. O-O {[%emt 0:07:05]} Qb6 {[%emt 0:17:20]} 19. d5 {[%emt 0:02:36]} Rc8 {[%emt 0:02:10]} 20. c4 {[%emt 0:01:38]} e6 {[%emt 0:02:10]} 21. b3 {[%emt 0:06:23]} Nc7 {[%emt 0:03:05]} 22. d6 {[%emt 0:01:54]} Ne8 {[%emt 0:00:48]} 23. Rad1 {[%emt 0:01:04]} Qd8 {[%emt 0:00:24]} 24. Kg2 {[%emt 0:01:38]} Ng7 {[%emt 0:01:59]} 25. g4 {[%emt 0:02:50]} Qf8 {[%emt 0:01:43]} 26. Rh1 {[%emt 0:09:16]} Ne8 {[%emt 0:01:00]} 27. Qe3 {[%emt 0:01:19]} f6 {[%emt 0:02:12]} 28. f4 {[%emt 0:01:25]} fxe5 {[%emt 0:03:06]} 29. fxe5 {[%emt 0:00:38]} Ng7 {[%emt 0:02:59]} 30. Rh3 {[%emt 0:00:53]} Ne8 {[%emt 0:02:06]} 31. Rdh1 {[%emt 0:00:50]} Qg7 {[%emt 0:01:01]} 32. Rh6 {[%emt 0:01:27]} 1-0

[Event "ESTCC-50 2025"]
[Site "Swidnica"]
[Date "2025.04.11"]
[Round "7.4"]
[White "Szydelko, Kazimierz"]
[Black "Jackson, Sheila"]
[Result "0-1"]
[Annotator "NA"]
[ECO "E16"]
[WhiteElo "1798"]
[BlackElo "2031"]
[PlyCount "76"]
[EventDate "2025.04.05"]
[EventType "team-tourn"]
[EventCountry "POL"]
[SourceTitle "playchess.com"]
[Source "ChessBase"]
[SourceQuality "1"]
[WhiteTeam "Poland"]
[BlackTeam "England"]
[WhiteTeamCountry "POL"]
[BlackTeamCountry "ENG"]
[TimeControl "40/5400+30:1800+30"]

1. d4 {[%emt 0:00:02]} Nf6 {[%emt 0:00:06]} 2. Nf3 {[%emt 0:00:07]} e6 {[%emt 0:05:13]} 3. c4 {[%emt 0:00:17]} Bb4+ {[%emt 0:00:46]} 4. Bd2 {[%emt 0:00:25]} Qe7 {[%emt 0:15:32]} 5. Qc2 {[%emt 0:03:38]} Bxd2+ {[%emt 0:13:12]} 6. Nbxd2 {[%emt 0:02:23]} d6 {[%emt 0:02:55]} 7. e4 {[%emt 0:01:46]} e5 {[%emt 0:00:46]} 8. d5 {[%emt 0:02:45]} O-O {[%emt 0:04:27]} 9. Rc1 {[%emt 0:02:08]} b6 {[%emt 0:02:09]} 10. b4 {[%emt 0:01:36]} a5 {[%emt 0:05:11]} 11. a3 {[%emt 0:01:07]} axb4 {[%emt 0:09:05]} 12. axb4 {[%emt 0:00:09]} Nbd7 {[%emt 0:05:44]} 13. Bd3 {[%emt 0:01:15]} Nh5 {[%emt 0:01:04]} 14. g3 {[%emt 0:03:37]} g6 {[%emt 0:01:49]} 15. Nh4 {[%emt 0:01:26]} Nf4 {[%emt 0:01:45]} 16. Ndf3 {[%emt 0:02:16]} Nxd3+ {[%emt 0:04:53]} 17. Qxd3 {[%emt 0:00:03]} f5 {[%emt 0:08:40]} 18. Nd2 {[%emt 0:31:13]} f4 {[%emt 0:01:37]} 19. Ng2 {[%emt 0:00:24]} g5 {[%emt 0:05:33]} 20. h4 {[%emt 0:00:26]} g4 {[%emt 0:00:58]} 21. O-O {[%emt 0:01:21]} h5 {[%emt 0:02:24]} 22. Nb3 {[%emt 0:00:10]} Ra4 {[%emt 0:03:51]} 23. Qd2 {[%emt 0:02:29]} Nf6 {[%emt 0:01:17]} 24. gxf4 {[%emt 0:03:49]} Nxe4 {[%emt 0:00:28]} 25. Qe3 {[%emt 0:02:54]} Bf5 {[%emt 0:01:01]} 26. f3 {[%emt 0:04:57]} gxf3 {[%emt 0:00:44]} 27. Rxf3 {[%emt 0:00:33]} Rxb4 {[%emt 0:00:16]} 28. fxe5 {[%emt 0:02:17]} Qxe5 {[%emt 0:00:50]} 29. Nd4 {[%emt 0:02:00]} Rb2 {[%emt 0:01:21]} 30. Rcf1 {[%emt 0:01:37]} Qg7 {[%emt 0:00:02]} 31. Ne2 {[%emt 0:01:38]} Rxe2 {[%emt 0:00:49]} 32. Qxe2 {[%emt 0:00:28]} Ng3 {[%emt 0:00:05]} 33. Rxg3 {[%emt 0:01:19]} Qxg3 {[%emt 0:00:02]} 34. Rxf5 {[%emt 0:00:21]} Rxf5 {[%emt 0:00:05]} 35. Qe6+ Rf7 {[%emt 0:00:02]} 36. Qe2 {[%emt 0:09:59]} Qg4 {[%emt 0:00:50]} 37. Qxg4+ {[%emt 0:00:13]} hxg4 {[%emt 0:00:01]} 38. Ne3 {[%emt 0:00:02]} Rf3 {[%emt 0:00:58]} 0-1

[Event "ESTCC-50 2025"]
[Site "Swidnica"]
[Date "2025.04.11"]
[Round "7.5"]
[White "Zych, Marek"]
[Black "Bischoff, Klaus"]
[Result "1/2-1/2"]
[Annotator "ChessBase"]
[ECO "D02"]
[WhiteElo "1942"]
[BlackElo "2425"]
[PlyCount "27"]
[EventDate "2025.04.05"]
[EventType "team-tourn"]
[EventCountry "POL"]
[SourceTitle "playchess.com"]
[Source "ChessBase"]
[SourceQuality "1"]
[WhiteTeam "Poland"]
[BlackTeam "Germany"]
[WhiteTeamCountry "POL"]
[BlackTeamCountry "GER"]
[TimeControl "40/5400+30:1800+30"]

1. Nf3 {[%emt 0:00:05]} d5 {[%emt 0:00:20]} 2. d4 {[%emt 0:00:12]} Nf6 {[%emt 0:00:23]} 3. g3 {[%emt 0:01:33]} c6 {[%emt 0:00:58]} 4. Bg2 {[%emt 0:00:17]} Bf5 {[%emt 0:00:35]} 5. c4 {[%emt 0:00:47]} e6 {[%emt 0:00:22]} 6. O-O {[%emt 0:00:37]} h6 {[%emt 0:00:44]} 7. Nc3 {[%emt 0:00:23]} Be7 {[%emt 0:00:29]} 8. Nd2 {[%emt 0:00:45]} O-O {[%emt 0:01:37]} 9. e4 {[%emt 0:01:47]} dxe4 {[%emt 0:00:43]} 10. Ndxe4 {[%emt 0:00:14]} Nbd7 {[%emt 0:00:23]} 11. Be3 {[%emt 0:02:52]} Ng4 {[%emt 0:06:28]} 12. Bc1 {[%emt 0:05:35]} Ngf6 {[%emt 0:00:35]} 13. Be3 {[%emt 0:00:19]} Ng4 {[%emt 0:00:56]} 14. Bc1 {[%emt 0:00:11]} 1/2-1/2

[Event "ESTCC-50 2025"]
[Site "Swidnica"]
[Date "2025.04.11"]
[Round "7.7"]
[White "Stec, Czeslaw"]
[Black "Tischbierek, Raj"]
[Result "0-1"]
[Annotator "ChessBase"]
[ECO "B06"]
[WhiteElo "1820"]
[BlackElo "2418"]
[PlyCount "56"]
[EventDate "2025.04.05"]
[EventType "team-tourn"]
[EventCountry "POL"]
[SourceTitle "playchess.com"]
[Source "ChessBase"]
[SourceQuality "1"]
[WhiteTeam "Poland"]
[BlackTeam "Germany"]
[WhiteTeamCountry "POL"]
[BlackTeamCountry "GER"]
[TimeControl "40/5400+30:1800+30"]

1. e4 {[%emt 0:00:09]} g6 {[%emt 0:01:06]} 2. d4 {[%emt 0:00:15]} d6 {[%emt 0:00:04]} 3. Nc3 {[%emt 0:00:14]} a6 {[%emt 0:00:30]} 4. f4 {[%emt 0:00:21]} b5 {[%emt 0:00:15]} 5. a3 {[%emt 0:00:50]} Bg7 {[%emt 0:02:55]} 6. Nf3 {[%emt 0:01:57]} Bb7 {[%emt 0:02:16]} 7. Be2 {[%emt 0:04:51]} Nf6 {[%emt 0:04:43]} 8. e5 {[%emt 0:00:57]} Nd5 {[%emt 0:00:47]} 9. Nxd5 {[%emt 0:05:20]} Bxd5 {[%emt 0:00:04]} 10. b3 {[%emt 0:01:04]} Nd7 {[%emt 0:06:05]} 11. O-O {[%emt 0:03:40]} O-O {[%emt 0:01:32]} 12. Be3 {[%emt 0:08:29]} Rb8 {[%emt 0:03:00]} 13. Rb1 {[%emt 0:04:58]} e6 {[%emt 0:14:05]} 14. Qd3 {[%emt 0:17:38]} c5 {[%emt 0:08:51]} 15. exd6 {[%emt 0:07:32]} c4 {[%emt 0:00:44]} 16. Qd2 {[%emt 0:00:37]} cxb3 {[%emt 0:06:11]} 17. cxb3 {[%emt 0:00:13]} Nf6 {[%emt 0:00:20]} 18. h3 {[%emt 0:03:00]} Ne4 {[%emt 0:02:50]} 19. Qb2 {[%emt 0:07:29]} Ng3 {[%emt 0:03:29]} 20. Rfc1 {[%emt 0:00:21]} Qxd6 {[%emt 0:04:51]} 21. b4 {[%emt 0:05:11]} Be4 {[%emt 0:01:29]} 22. Ra1 {[%emt 0:00:32]} Nf5 {[%emt 0:01:55]} 23. Bf2 {[%emt 0:10:56]} Bxf3 {[%emt 0:01:49]} 24. Bxf3 {[%emt 0:00:09]} Nxd4 {[%emt 0:00:16]} 25. Qa2 {[%emt 0:00:35]} Nxf3+ {[%emt 0:00:46]} 26. gxf3 {[%emt 0:00:10]} Qxf4 {[%emt 0:00:26]} 27. Rab1 {[%emt 0:00:46]} Qxf3 {[%emt 0:01:43]} 28. Rb3 {[%emt 0:00:18]} Qd5 {[%emt 0:01:29]} 0-1

[Event "ESTCC-50 2025"]
[Site "Swidnica"]
[Date "2025.04.11"]
[Round "7.8"]
[White "Kribben, Matthias"]
[Black "Kilanski, Janusz"]
[Result "1-0"]
[Annotator "NA"]
[ECO "B30"]
[WhiteElo "2060"]
[BlackElo "1670"]
[PlyCount "57"]
[EventDate "2025.04.05"]
[EventType "team-tourn"]
[EventCountry "POL"]
[SourceTitle "playchess.com"]
[Source "ChessBase"]
[SourceQuality "1"]
[WhiteTeam "Germany"]
[BlackTeam "Poland"]
[BlackTeamCountry "POL"]
[TimeControl "40/5400+30:1800+30"]

1. e4 {[%emt 0:00:10]} c5 {[%emt 0:00:25]} 2. Nf3 {[%emt 0:00:11]} Nc6 {[%emt 0:00:24]} 3. Bb5 {[%emt 0:01:12]} a6 {[%emt 0:02:23]} 4. Bxc6 {[%emt 0:00:19]} bxc6 {[%emt 0:00:26]} 5. O-O {[%emt 0:02:08]} Nf6 {[%emt 0:00:50]} 6. Nc3 {[%emt 0:04:17]} e6 {[%emt 0:01:45]} 7. Re1 {[%emt 0:03:31]} d5 {[%emt 0:01:55]} 8. e5 {[%emt 0:02:47]} Nd7 {[%emt 0:01:15]} 9. d4 {[%emt 0:02:30]} cxd4 {[%emt 0:01:56]} 10. Qxd4 {[%emt 0:04:37]} h6 {[%emt 0:07:04]} 11. Bd2 {[%emt 0:17:54]} c5 {[%emt 0:03:53]} 12. Qg4 {[%emt 0:00:56]} Rb8 {[%emt 0:03:47]} 13. b3 {[%emt 0:02:26]} Bb7 {[%emt 0:02:15]} 14. Rad1 {[%emt 0:07:20]} Qc7 {[%emt 0:05:37]} 15. Qa4 {[%emt 0:06:55]} Be7 {[%emt 0:06:20]} 16. Qg4 {[%emt 0:00:42]} Bf8 {[%emt 0:04:54]} 17. Qa4 {[%emt 0:01:04]} g6 {[%emt 0:14:34]} 18. Bf4 {[%emt 0:12:25]} Qb6 {[%emt 0:02:03]} 19. Nxd5 {[%emt 0:05:33]} Bxd5 {[%emt 0:05:39]} 20. Rxd5 {[%emt 0:00:18]} Rb7 {[%emt 0:14:42]} 21. Rd3 {[%emt 0:02:07]} Be7 {[%emt 0:04:41]} 22. Red1 {[%emt 0:02:34]} Qb5 {[%emt 0:00:57]} 23. Qe4 {[%emt 0:06:01]} g5 {[%emt 0:03:34]} 24. Be3 {[%emt 0:00:23]} f5 {[%emt 0:06:28]} 25. exf6 {[%emt 0:00:33]} Bxf6 {[%emt 0:01:12]} 26. Qxe6+ {[%emt 0:01:00]} Be7 {[%emt 0:00:21]} 27. Ne5 {[%emt 0:05:19]} Rf8 {[%emt 0:02:55]} 28. Rxd7 {[%emt 0:02:22]} Rxd7 {[%emt 0:00:47]} 29. Rxd7 {[%emt 0:00:30]} 1-0

[Event "ESTCC-50 2025"]
[Site "Swidnica"]
[Date "2025.04.11"]
[Round "7.9"]
[White "Adams, Michael"]
[Black "Fletcher, John"]
[Result "1-0"]
[Annotator "ChessBase"]
[ECO "B31"]
[WhiteElo "2661"]
[BlackElo "1989"]
[PlyCount "51"]
[EventDate "2025.04.05"]
[EventType "team-tourn"]
[EventCountry "POL"]
[SourceTitle "playchess.com"]
[Source "ChessBase"]
[SourceQuality "1"]
[WhiteTeam "England"]
[BlackTeam "Wales"]
[WhiteTeamCountry "ENG"]
[BlackTeamCountry "WLS"]
[TimeControl "40/5400+30:1800+30"]

1. e4 {[%emt 0:00:05]} c5 {[%emt 0:00:58]} 2. Nf3 {[%emt 0:00:13]} Nc6 {[%emt 0:00:10]} 3. Bb5 {[%emt 0:00:13]} g6 {[%emt 0:01:21]} 4. Bxc6 {[%emt 0:00:20]} bxc6 {[%emt 0:00:11]} 5. O-O {[%emt 0:01:21]} Bg7 {[%emt 0:00:43]} 6. Re1 {[%emt 0:00:17]} Nf6 {[%emt 0:04:59]} 7. e5 {[%emt 0:02:15]} Nd5 {[%emt 0:00:14]} 8. c4 {[%emt 0:02:23]} Nc7 {[%emt 0:00:54]} 9. Nc3 {[%emt 0:02:02]} O-O {[%emt 0:00:53]} 10. d4 {[%emt 0:03:35]} cxd4 {[%emt 0:02:59]} 11. Qxd4 {[%emt 0:00:43]} Ne6 {[%emt 0:07:11]} 12. Qh4 {[%emt 0:00:25]} d5 {[%emt 0:11:49]} 13. Bh6 {[%emt 0:06:33]} f6 {[%emt 0:05:59]} 14. Bxg7 {[%emt 0:06:33]} Nxg7 {[%emt 0:07:38]} 15. Rad1 {[%emt 0:12:15]} Nf5 {[%emt 0:15:15]} 16. Qf4 {[%emt 0:02:42]} Qb6 {[%emt 0:01:56]} 17. cxd5 {[%emt 0:02:06]} Qxb2 {[%emt 0:03:25]} 18. Qc4 {[%emt 0:00:26]} Ba6 {[%emt 0:09:20]} 19. Qxa6 {[%emt 0:02:23]} Qxc3 {[%emt 0:02:36]} 20. Rc1 {[%emt 0:00:41]} Qb4 {[%emt 0:01:13]} 21. dxc6 {[%emt 0:00:11]} fxe5 {[%emt 0:01:31]} 22. c7 {[%emt 0:02:34]} Nd6 {[%emt 0:00:31]} 23. Nxe5 {[%emt 0:03:22]} Qd4 {[%emt 0:04:41]} 24. Qe2 {[%emt 0:00:36]} Qh4 {[%emt 0:03:56]} 25. g3 {[%emt 0:01:32]} Qg5 {[%emt 0:02:48]} 26. Nc6 {[%emt 0:01:56]} 1-0

[Event "ESTCC-50 2025"]
[Site "Swidnica"]
[Date "2025.04.11"]
[Round "7.10"]
[White "Adams, Mark"]
[Black "Emms, John M"]
[Result "0-1"]
[Annotator "ChessBase"]
[ECO "B10"]
[WhiteElo "1916"]
[BlackElo "2411"]
[PlyCount "74"]
[EventDate "2025.04.05"]
[EventType "team-tourn"]
[EventCountry "POL"]
[SourceTitle "playchess.com"]
[Source "ChessBase"]
[SourceQuality "1"]
[WhiteTeam "Wales"]
[BlackTeam "England"]
[WhiteTeamCountry "WLS"]
[BlackTeamCountry "ENG"]
[TimeControl "40/5400+30:1800+30"]

1. e4 {[%emt 0:00:06]} c6 {[%emt 0:00:58]} 2. Nf3 {[%emt 0:00:06]} d5 {[%emt 0:00:28]} 3. exd5 {[%emt 0:00:11]} cxd5 {[%emt 0:00:07]} 4. Ne5 {[%emt 0:00:22]} Nc6 {[%emt 0:00:43]} 5. d4 {[%emt 0:01:34]} e6 {[%emt 0:01:47]} 6. c3 {[%emt 0:00:38]} Bd6 {[%emt 0:01:42]} 7. f4 {[%emt 0:00:18]} Nh6 {[%emt 0:01:42]} 8. Bd3 {[%emt 0:03:45]} O-O {[%emt 0:00:59]} 9. O-O {[%emt 0:02:39]} f6 {[%emt 0:01:27]} 10. Nxc6 {[%emt 0:12:58]} bxc6 {[%emt 0:00:04]} 11. Nd2 {[%emt 0:00:08]} a5 {[%emt 0:11:53]} 12. Nf3 {[%emt 0:06:04]} Ba6 {[%emt 0:05:45]} 13. Re1 {[%emt 0:05:16]} Bxd3 {[%emt 0:09:01]} 14. Qxd3 {[%emt 0:00:27]} Re8 {[%emt 0:00:18]} 15. g3 {[%emt 0:04:08]} a4 {[%emt 0:04:27]} 16. Kg2 {[%emt 0:04:50]} Qb6 {[%emt 0:08:09]} 17. Bd2 {[%emt 0:03:46]} Qb5 {[%emt 0:07:45]} 18. Qxb5 {[%emt 0:02:46]} cxb5 {[%emt 0:00:02]} 19. a3 {[%emt 0:00:10]} Kf7 {[%emt 0:01:11]} 20. Re2 {[%emt 0:00:10]} Nf5 {[%emt 0:01:50]} 21. Rae1 {[%emt 0:10:28]} Bc7 {[%emt 0:07:13]} 22. Be3 {[%emt 0:06:36]} Nd6 {[%emt 0:09:26]} 23. Nd2 {[%emt 0:02:12]} Rac8 {[%emt 0:01:05]} 24. h3 {[%emt 0:02:39]} Ba5 {[%emt 0:01:36]} 25. Bf2 {[%emt 0:02:09]} Bc7 {[%emt 0:04:04]} 26. Be3 {[%emt 0:00:22]} h6 {[%emt 0:00:50]} 27. Rf1 {[%emt 0:01:27]} Bb6 {[%emt 0:02:10]} 28. Rf3 {[%emt 0:06:51]} Rc6 {[%emt 0:04:12]} 29. Rf1 {[%emt 0:00:55]} Ra8 {[%emt 0:00:45]} 30. Nb1 {[%emt 0:00:57]} Nc4 {[%emt 0:02:08]} 31. Bd2 {[%emt 0:00:11]} Nxb2 {[%emt 0:01:20]} 32. Be1 {[%emt 0:02:46]} Nc4 {[%emt 0:00:26]} 33. f5 {[%emt 0:02:05]} exf5 {[%emt 0:04:49]} 34. Rxf5 {[%emt 0:00:07]} Re6 {[%emt 0:00:36]} 35. Kf2 {[%emt 0:03:18]} Rae8 {[%emt 0:01:54]} 36. Rxe6 {[%emt 0:00:13]} Kxe6 {[%emt 0:00:04]} 37. Rf3 {[%emt 0:00:43]} Bc7 {[%emt 0:01:10]} 0-1

[Event "ESTCC-50 2025"]
[Site "Swidnica"]
[Date "2025.04.11"]
[Round "7.11"]
[White "Davies, Nigel R"]
[Black "Van Kemenade, Rudy"]
[Result "1-0"]
[Annotator "ChessBase"]
[ECO "A48"]
[WhiteElo "2309"]
[BlackElo "1945"]
[PlyCount "63"]
[EventDate "2025.04.05"]
[EventType "team-tourn"]
[EventCountry "POL"]
[SourceTitle "playchess.com"]
[Source "ChessBase"]
[SourceQuality "1"]
[WhiteTeam "England"]
[BlackTeam "Wales"]
[WhiteTeamCountry "ENG"]
[BlackTeamCountry "WLS"]
[TimeControl "40/5400+30:1800+30"]

1. d4 {[%emt 0:00:15]} Nf6 {[%emt 0:00:08]} 2. Nf3 {[%emt 0:00:07]} g6 {[%emt 0:00:07]} 3. Nbd2 {[%emt 0:01:18]} Bg7 {[%emt 0:00:17]} 4. e4 {[%emt 0:00:08]} d6 {[%emt 0:00:05]} 5. Bb5+ {[%emt 0:00:23]} c6 {[%emt 0:00:11]} 6. Bd3 {[%emt 0:00:07]} O-O {[%emt 0:00:08]} 7. O-O {[%emt 0:00:05]} Nbd7 {[%emt 0:01:05]} 8. Re1 {[%emt 0:00:22]} e5 {[%emt 0:00:07]} 9. c3 {[%emt 0:00:14]} Ne8 {[%emt 0:01:16]} 10. Bf1 {[%emt 0:05:45]} f5 {[%emt 0:04:34]} 11. exf5 {[%emt 0:02:11]} gxf5 {[%emt 0:02:02]} 12. dxe5 {[%emt 0:00:11]} dxe5 {[%emt 0:00:12]} 13. Nc4 {[%emt 0:00:25]} e4 {[%emt 0:00:17]} 14. Ng5 {[%emt 0:02:21]} Qf6 {[%emt 0:01:12]} 15. Qh5 {[%emt 0:07:51]} h6 {[%emt 0:01:41]} 16. Nh3 {[%emt 0:00:15]} b5 {[%emt 0:02:01]} 17. Na5 {[%emt 0:08:00]} Ne5 {[%emt 0:01:11]} 18. Bf4 {[%emt 0:00:36]} Ng6 {[%emt 0:01:53]} 19. Bxh6 {[%emt 0:02:02]} Be6 {[%emt 0:01:22]} 20. Bg5 {[%emt 0:03:53]} Qf7 {[%emt 0:00:18]} 21. Nxc6 {[%emt 0:00:35]} Nf6 {[%emt 0:00:58]} 22. Qxg6 {[%emt 0:02:54]} Qxg6 {[%emt 0:00:18]} 23. Ne7+ {[%emt 0:00:06]} Kf7 {[%emt 0:00:12]} 24. Nxg6 {[%emt 0:00:07]} Kxg6 {[%emt 0:00:11]} 25. Nf4+ {[%emt 0:00:05]} Kf7 {[%emt 0:00:12]} 26. Nxe6 {[%emt 0:00:31]} Kxe6 {[%emt 0:00:09]} 27. Bxb5 {[%emt 0:00:11]} Kf7 {[%emt 0:00:34]} 28. Rad1 {[%emt 0:00:53]} Rab8 {[%emt 0:01:07]} 29. a4 {[%emt 0:00:43]} a6 {[%emt 0:00:07]} 30. Bc4+ {[%emt 0:00:08]} Kg6 {[%emt 0:00:08]} 31. Bc1 {[%emt 0:00:10]} Ng4 {[%emt 0:01:13]} 32. Bxa6 {[%emt 0:01:34]} 1-0